bitfinex/quotes_ETHUSD_20250115
["timestamp","ask_amount","ask_price","bid_price","bid_amount"]
[1736947377167,0.7707,3214.0,3213.5,1.13610674]
[1736947377327,0.7707,3214.0,3213.5,0.8041]
[1736947377838,0.7707,3214.0,3213.6,3.11174]
[1736947379072,0.7707,3214.0,3213.4,3.28894]
[1736947379439,0.7707,3214.0,3213.5,3.11183]
[1736947380772,0.7707,3214.0,3213.6,0.28976932]
[1736947380938,0.7707,3214.0,3213.6,0.64762925]
[1736947381676,0.7707,3214.0,3213.6,0.35785993]
[1736947382937,0.7707,3214.0,3213.6,3.50073441]
[1736947384374,0.7707,3214.0,3213.6,3.46961993]
[1736947384553,0.7707,3214.0,3213.6,3.64661993]
[1736947384757,0.7707,3214.0,3213.7,0.31966723]
[1736947386580,0.7707,3214.0,3213.7,1.61251977]
[1736947387796,0.7707,3214.0,3213.8,1.29285254]
[1736947388125,0.7813,3214.6,3213.9,3.11148]
[1736947388289,1.170504,3214.6,3213.9,3.11148]
[1736947388483,0.7813,3214.6,3213.9,3.11148]
[1736947389019,0.7813,3214.6,3213.8,1.29285254]
[1736947389414,0.7813,3214.6,3213.8,4.40439254]
[1736947389619,0.7813,3214.6,3214.0,1.29285254]
[1736947395122,0.7813,3214.6,3214.1,3.14233058]
[1736947395321,0.7813,3214.6,3214.2,3.63362831]
[1736947396149,0.7813,3214.6,3214.2,0.52244831]
[1736947396355,0.7813,3215.2,3214.4,3.11093]
[1736947396752,0.7813,3215.1,3214.2,4.92645085]
[1736947397061,0.7813,3214.6,3214.4,1.29285254]
[1736947397359,1.15426154,3214.5,3214.4,1.29285254]
[1736947397561,0.7813,3214.4,3213.9,1.29285254]
[1736947397728,3.11107,3214.4,3213.9,1.29285254]
[1736947397932,0.7813,3214.3,3213.9,1.29285254]
[1736947398132,0.7813,3214.3,3213.8,1.29285254]
[1736947399961,0.7813,3214.3,3213.9,1.29285254]
[1736947400532,0.7813,3214.3,3213.9,1.92719366]
[1736947401324,0.7813,3214.3,3214.0,1.29285254]
[1736947401859,0.7813,3214.3,3213.9,1.92719366]
[1736947402224,0.7813,3214.3,3214.0,1.29285254]
[1736947402855,0.7813,3214.3,3214.0,4.40423254]
[1736947403055,0.7813,3214.3,3214.1,0.70086037]
[1736947403757,0.7813,3214.8,3214.1,0.70086037]
[1736947403957,0.7813,3214.8,3214.2,0.03111136]
[1736947404163,0.7813,3214.8,3214.5,3.11087]
[1736947407957,0.7813,3214.8,3214.5,4.40372254]
[1736947408153,0.7813,3214.8,3214.6,0.44348294]
[1736947408357,0.7813,3214.8,3214.6,3.55427294]
[1736947409186,0.7813,3214.8,3214.6,0.44348294]
[1736947410852,0.7813,3214.8,3214.5,3.11089]
[1736947415089,0.7813,3214.8,3214.6,3.1108]
[1736947417189,0.8309,3215.1,3214.9,3.1105]
[1736947417407,0.8309,3216.3,3215.3,0.7826]
[1736947417607,0.8309,3216.3,3215.7,6.05803542]
[1736947417759,0.8309,3216.3,3216.0,3.10943]
[1736947417959,0.8309,3216.3,3215.8,1.56440354]
[1736947418277,0.8309,3216.3,3215.9,0.03109277]
[1736947418450,0.8309,3216.3,3215.9,3.10954]
[1736947418918,0.8309,3216.3,3216.0,3.10945]
[1736947419078,0.167308,3216.5,3215.9,0.03109218]
[1736947419295,0.998208,3216.5,3216.3,3.10912]
[1736947419492,0.167308,3216.5,3216.4,3.10906]
[1736947422025,0.167308,3216.5,3216.3,3.10915]
[1736947424010,0.167308,3216.5,3216.4,3.10906]
[1736947425071,0.167308,3216.5,3216.3,0.328515]
[1736947425275,0.167308,3216.5,3216.3,3.10914]
[1736947425921,0.167308,3216.5,3216.2,0.176]
[1736947426121,0.167308,3216.5,3216.4,3.10906]
[1736947426466,0.167308,3216.5,3216.2,3.28525]
[1736947426975,0.167308,3216.5,3216.3,3.10908]
[1736947427340,0.167308,3216.5,3216.3,3.437588]
[1736947427880,0.167308,3216.5,3216.4,3.10906]
[1736947428083,0.167308,3216.5,3216.4,3.14014976]
[1736947428256,0.167308,3216.5,3216.4,3.10906]
[1736947430046,0.167308,3216.5,3216.4,7.38937542]
[1736947430246,0.167308,3216.5,3216.4,8.59124045]
[1736947430659,0.167308,3216.5,3216.4,8.76724045]
[1736947430883,0.167308,3216.5,3216.4,8.04124045]
[1736947431085,0.167308,3216.5,3216.4,5.21724045]
[1736947431255,0.167308,3216.5,3216.4,5.07232564]
[1736947431457,0.167308,3216.5,3216.4,5.24832564]
[1736947431657,0.167308,3216.5,3216.4,4.25924045]
[1736947431863,0.167308,3216.5,3216.4,3.28506]
[1736947432976,0.167308,3216.5,3216.4,3.10906]
[1736947433191,0.167308,3216.5,3216.4,3.28506]
[1736947434064,0.964508,3216.5,3216.4,3.28506]
[1736947434265,0.964508,3216.5,3216.4,0.176]
[1736947434587,0.964508,3216.5,3216.3,0.176]
[1736947434757,0.964508,3216.5,3216.2,0.176]
[1736947434962,0.167308,3216.5,3216.2,0.504528]
[1736947435162,0.167308,3216.5,3216.4,3.10906]
[1736947435875,0.167308,3216.5,3216.2,3.28523]
[1736947436355,0.167308,3216.5,3216.3,0.176]
[1736947436555,0.167308,3216.5,3216.3,3.28512]
[1736947436778,0.167308,3216.5,3216.3,3.31620832]
[1736947436974,0.167308,3216.5,3216.4,0.33162083]
[1736947437175,0.167308,3216.5,3216.4,3.10906]
[1736947437985,0.167308,3216.5,3216.3,0.176]
[1736947438354,0.167308,3216.5,3216.3,3.28514]
[1736947439081,0.7972,3216.4,3216.3,3.10914]
[1736947439396,0.7972,3216.4,3216.3,3.28514]
[1736947439604,0.167308,3216.5,3216.3,3.28514]
[1736947439905,0.167308,3216.5,3216.2,0.176]
[1736947440407,0.167308,3216.5,3216.2,3.10918]
[1736947440552,0.167308,3216.5,3216.1,0.176]
[1736947441394,0.7972,3216.4,3216.1,0.176]
[1736947441754,0.7972,3216.4,3215.9,3.28552]
[1736947441955,0.7972,3216.4,3215.9,3.67786454]
[1736947442191,0.7972,3216.4,3215.9,0.56834454]
[1736947442385,0.7972,3216.4,3216.1,3.10934]
[1736947442588,0.167308,3216.5,3216.2,0.03109098]
[1736947442767,0.167308,3216.5,3216.2,3.10917]
[1736947442962,0.167308,3216.5,3216.3,3.10915]
[1736947443369,0.167308,3216.5,3216.4,3.10906]
[1736947443684,0.167308,3216.5,3216.0,3.1094]
[1736947443885,0.15934278,3216.5,3216.2,3.1092]
[1736947444054,0.7601,3216.4,3216.2,3.1092]
[1736947444459,0.7601,3216.4,3215.9,3.28546]
[1736947445094,0.7601,3216.4,3216.0,0.03109227]
[1736947445293,0.15934278,3216.5,3216.4,3.10906]
[1736947445999,0.15934278,3216.5,3216.0,3.10945]
[1736947446174,0.15934278,3216.5,3216.1,3.10926]
[1736947446372,0.15934278,3216.5,3216.0,3.10945]
[1736947446573,0.15934278,3216.5,3215.9,0.176]
[1736947446786,0.7601,3216.4,3215.9,0.176]
[1736947447256,0.7601,3216.4,3215.8,3.28564]
[1736947447662,0.7601,3216.4,3215.8,0.504564]
[1736947447864,0.7601,3216.4,3216.3,3.10916]
[1736947448757,0.7601,3216.4,3215.9,0.8037]
[1736947448965,0.7601,3216.4,3216.0,0.176]
[1736947449300,0.7601,3216.4,3216.2,3.10918]
[1736947449664,0.15934278,3216.5,3216.3,3.10916]
[1736947451203,0.15934278,3216.5,3216.1,3.10928]
[1736947451502,0.15934278,3216.5,3216.2,3.10925]
[1736947451693,0.7601,3216.4,3216.2,0.28921793]
[1736947452765,0.7601,3216.4,3216.1,3.10934]
[1736947453299,0.7601,3216.4,3216.2,3.10924]
[1736947454965,0.7601,3216.4,3216.0,3.28539]
[1736947455563,0.7601,3216.4,3216.0,0.176]
[1736947456702,0.15934278,3216.5,3216.1,0.83479353]
[1736947456899,0.15934278,3216.5,3215.9,0.9817]
[1736947457126,0.15934278,3216.5,3216.1,3.1093]
[1736947459108,0.15934278,3216.5,3216.2,3.10923]
[1736947460572,0.15934278,3216.5,3215.8,4.40164015]
[1736947460573,0.7601,3216.4,3215.8,3.10957]
[1736947461001,0.7601,3216.4,3215.9,0.03109325]
[1736947461197,0.7601,3216.4,3215.8,3.10957]
[1736947461677,0.7601,3216.4,3215.8,3.14066341]
[1736947462228,0.7601,3216.4,3215.8,3.31866341]
[1736947462895,0.7601,3216.4,3215.8,0.20909341]
[1736947463078,0.7601,3216.4,3215.9,3.10954]
[1736947463279,0.7601,3216.4,3215.9,0.46107036]
[1736947463480,0.7601,3216.4,3215.9,3.10948]
[1736947464008,0.7601,3216.4,3215.9,4.40155015]
[1736947464308,0.7601,3216.4,3215.9,1.29207015]
[1736947464827,0.7996,3216.3,3215.9,1.29207015]
[1736947465119,0.7996,3216.3,3215.7,4.40180015]
[1736947465315,0.7996,3216.3,3215.7,5.03579069]
[1736947465504,0.7996,3216.3,3215.8,1.29207015]
[1736947469016,0.7996,3216.3,3215.7,4.40180015]
[1736947469504,0.7996,3216.3,3215.7,4.57980015]
[1736947469819,0.7996,3216.3,3215.8,1.29207015]
[1736947470314,0.7996,3216.3,3215.7,4.57980015]
[1736947474681,0.7996,3216.3,3215.8,3.10962]
[1736947475908,0.7996,3216.3,3215.7,1.47007015]
[1736947476108,0.7996,3216.3,3215.7,4.40181015]
[1736947476407,0.7996,3216.3,3215.7,1.29207015]
[1736947476609,0.7996,3216.3,3215.8,3.10961]
[1736947478919,0.7996,3216.3,3215.8,4.40168015]
[1736947479135,0.7996,3216.3,3215.9,0.45796801]
[1736947479317,0.7996,3216.3,3215.8,3.10961]
[1736947479824,0.7996,3216.3,3215.8,4.40168015]
[1736947481221,0.7996,3216.3,3215.8,1.29207015]
[1736947481422,0.7996,3216.3,3215.7,1.47007015]
[1736947482487,0.7996,3216.3,3215.7,1.37938514]
[1736947482689,0.8127,3216.2,3215.7,4.48907514]
[1736947482889,0.8127,3216.2,3215.7,1.37938514]
[1736947483097,3.92204,3216.2,3215.7,1.29207015]
[1736947483323,0.8127,3216.0,3215.8,1.29207015]
[1736947483925,0.8127,3216.0,3215.5,1.47007015]
[1736947484329,0.8127,3216.0,3215.7,3.10974]
[1736947485508,0.8127,3216.0,3215.7,4.40181015]
[1736947489532,0.8127,3216.0,3215.7,3.10974]
[1736947490027,0.8127,3216.0,3215.7,4.40181015]
[1736947490533,0.15934278,3216.5,3215.9,0.55]
[1736947490737,0.15934278,3216.5,3216.1,3.10928]
[1736947491029,0.15934278,3216.5,3216.0,0.03109014]
[1736947491332,0.15934278,3216.5,3216.0,1.32316029]
[1736947491510,0.15934278,3216.5,3216.3,3.10916]
[1736947491829,0.15934278,3216.5,3216.4,3.10906]
[1736947492030,0.15934278,3216.5,3216.4,3.54917302]
[1736947492237,0.15934278,3216.5,3216.4,4.13025967]
[1736947492837,0.15934278,3216.5,3216.4,7.86067509]
[1736947492999,0.15934278,3216.5,3216.4,10.82958844]
[1736947493401,0.15934278,3216.5,3216.4,14.05976382]
[1736947493935,2.78e-06,3216.5,3216.4,14.05976382]
[1736947494251,0.00375926,3217.7,3216.7,0.55]
[1736947494539,0.00375926,3217.7,3217.6,6.05621542]
[1736947494697,0.00375926,3217.7,3217.6,3.68897334]
[1736947494899,0.00375926,3217.7,3217.6,3.1079]
[1736947495231,0.7993,3217.9,3217.6,3.10781]
[1736947495443,0.7993,3217.9,3217.6,1.2947427]
[1736947496067,0.7993,3217.9,3217.1,1.4707427]
[1736947496567,0.7993,3217.8,3217.1,0.176]
[1736947497448,0.7993,3217.8,3217.1,3.2843]
[1736947498047,0.7993,3217.8,3217.1,0.176]
[1736947499487,0.7993,3217.8,3216.9,3.1085]
[1736947499671,0.7993,3217.8,3217.0,0.176]
[1736947499874,0.7993,3217.8,3217.1,0.176]
[1736947500496,1.19036289,3217.8,3217.1,0.176]
[1736947500642,0.7993,3217.8,3217.1,0.176]
[1736947501092,0.7993,3217.8,3217.2,0.58108018]
[1736947501302,0.7993,3217.8,3217.2,1.36318018]
[1736947501602,0.7993,3217.8,3217.4,3.10806]
[1736947501967,0.0037589,3218.0,3217.5,0.03107683]
[1736947502146,0.0037589,3218.0,3217.9,3.10761]
[1736947502351,0.0037589,3218.0,3217.9,3.418371]
[1736947502658,0.0037589,3218.0,3217.9,3.99944214]
[1736947503557,0.0037589,3218.0,3217.9,3.99944016]
[1736947506930,0.0037589,3218.0,3217.9,4.17544016]
[1736947507047,0.0037589,3218.0,3217.9,4.144371]
[1736947507352,0.0037589,3218.0,3217.9,4.17544047]
[1736947507558,0.0037589,3218.0,3217.9,4.144371]
[1736947508290,0.0037589,3218.0,3217.9,4.17544103]
[1736947508949,1.718e-05,3218.0,3217.9,4.17544103]
[1736947510484,1.718e-05,3218.0,3217.9,7.94794103]
[1736947510703,1.718e-05,3218.0,3217.9,7.916871]
[1736947512993,1.718e-05,3218.0,3217.9,6.968371]
[1736947513166,1.718e-05,3218.0,3217.9,7.144371]
[1736947515417,1.718e-05,3218.0,3217.9,7.916871]
[1736947522521,1.718e-05,3218.0,3217.9,8.20541511]
[1736947526542,0.005,3218.4,3218.3,6.90273]
[1736947526761,0.005,3218.4,3218.3,10.85205942]
[1736947527076,0.005,3218.4,3218.3,11.69060353]
[1736947527641,1e-05,3218.4,3218.3,12.32095264]
[1736947529701,1e-05,3218.4,3218.3,12.4783266]
[1736947529913,1e-05,3218.4,3218.3,13.76547439]
[1736947530924,1e-05,3218.4,3218.3,13.94747439]
[1736947531108,1e-05,3218.4,3218.3,13.79010043]
[1736947531725,1e-05,3218.4,3218.3,13.60810043]
[1736947531894,1e-05,3218.4,3218.3,12.50295264]
[1736947533088,1e-05,3218.4,3218.3,13.79010043]
[1736947533479,1e-05,3218.4,3218.3,13.24010043]
[1736947533684,1e-05,3218.4,3218.3,13.79010043]
[1736947534185,1e-05,3218.4,3218.3,12.50295264]
[1736947534934,1e-05,3218.4,3218.3,11.52545264]
[1736947535102,1e-05,3218.4,3218.3,11.70745264]
[1736947536539,1e-05,3218.4,3218.3,13.63817433]
[1736947537098,1e-05,3218.4,3218.3,14.44527433]
[1736947537311,1e-05,3218.4,3218.3,15.08884823]
[1736947537694,1e-05,3218.4,3218.3,15.73242213]
[1736947538491,1e-05,3218.4,3218.3,12.51455264]
[1736947540317,1e-05,3218.4,3218.3,12.67466186]
[1736947540797,0.00375749,3219.2,3219.1,3.91355]
[1736947541003,0.00375749,3219.2,3219.1,7.59494278]
[1736947541192,0.00375749,3219.2,3219.1,7.56388442]
[1736947541607,0.00375749,3219.2,3219.1,9.50357217]
[1736947541802,0.00375749,3219.2,3219.1,5.22813775]
[1736947542028,0.82645749,3219.2,3219.1,2.12168775]
[1736947542231,0.82645749,3219.2,3219.1,1.93968775]
[1736947542529,0.82645749,3219.2,3219.1,2.12168775]
[1736947542708,0.82645749,3219.2,3219.1,0.182]
[1736947544103,0.82645749,3219.2,3219.1,3.28845]
[1736947547732,0.82645749,3219.2,3219.1,3.24532863]
[1736947550156,0.82645749,3219.2,3219.1,0.13887863]
[1736947554756,0.00375749,3219.2,3219.1,3.24532863]
[1736947554971,0.00375749,3219.2,3219.1,3.99721464]
[1736947555485,0.00375749,3219.2,3219.1,3.10645]
[1736947555631,0.00375749,3219.2,3219.0,1.93968775]
[1736947556044,0.7614,3219.1,3218.9,3.10661]
[1736947556236,0.00375749,3219.2,3219.1,78.2386]
[1736947559478,0.76515749,3219.2,3219.1,78.2386]
[1736947561375,0.00375749,3219.2,3219.1,81.36384416]
[1736947561575,0.00375749,3219.2,3219.1,84.31215958]
[1736947562240,0.00375749,3219.2,3219.1,81.36384416]
[1736947562437,0.00375749,3219.2,3219.1,84.47029416]
[1736947562637,0.00375749,3219.2,3219.1,86.40998191]
[1736947562878,0.00375749,3219.2,3219.1,86.69986669]
[1736947564780,0.00375749,3219.2,3219.1,84.76017894]
[1736947566177,0.00375749,3219.2,3219.1,86.70644115]
[1736947566849,0.00375749,3219.2,3219.1,87.34642927]
[1736947568152,0.00375749,3219.2,3219.1,84.76017894]
[1736947569492,0.00375749,3219.2,3219.1,85.56217894]
[1736947569648,0.00375749,3219.2,3219.1,88.1569217]
[1736947570451,0.00375749,3219.2,3219.1,88.79499185]
[1736947571602,0.00375749,3219.2,3219.1,87.99299185]
[1736947571955,0.00375749,3219.2,3219.1,90.94130727]
[1736947572255,0.00375749,3219.2,3219.1,91.74330727]
[1736947573887,0.00375749,3219.2,3219.1,88.79499185]
[1736947577180,0.00375749,3219.2,3219.1,88.97599185]
[1736947580793,0.00375749,3219.2,3219.1,89.60497471]
[1736947581303,0.00375749,3219.2,3219.1,86.3721618]
[1736947583400,0.00375749,3219.2,3219.1,89.9221618]
[1736947585204,7.49e-06,3219.2,3219.1,93.2001618]
[1736947585504,0.167308,3219.7,3219.6,3.90797]
[1736947585679,0.167308,3219.7,3219.6,7.58874956]
[1736947585890,0.167308,3219.7,3219.6,7.55769742]
[1736947586294,8e-06,3219.7,3219.6,11.10769742]
[1736947586487,0.00375973,3220.2,3220.1,3.10549]
[1736947586690,0.00375973,3220.2,3220.1,9.23580542]
[1736947587287,0.00375973,3220.2,3220.1,11.18012327]
[1736947587990,0.00375973,3220.2,3220.1,9.23580542]
[1736947588195,9.73e-06,3220.2,3220.1,13.27600562]
[1736947588391,9.73e-06,3220.2,3220.1,18.77546854]
[1736947588618,9.73e-06,3220.2,3220.1,13.09915312]
[1736947589117,9.73e-06,3220.2,3220.1,12.54915312]
[1736947589319,9.73e-06,3220.2,3220.1,13.18559055]
[1736947589520,9.73e-06,3220.2,3220.1,17.62708252]
[1736947589815,9.73e-06,3220.2,3220.1,20.57539794]
[1736947590522,9.73e-06,3220.2,3220.1,19.96190597]
[1736947590906,9.73e-06,3220.2,3220.1,16.68390597]
[1736947591300,0.7571,3221.6,3221.5,3.10414]
[1736947591512,0.7571,3221.6,3221.5,3.414554]
[1736947592081,0.7571,3221.9,3221.8,3.10385]
[1736947592318,0.7571,3221.9,3221.8,3.13488759]
[1736947592528,0.00375409,3222.2,3221.8,6.85416542]
[1736947592696,0.00375409,3222.2,3222.1,3.10356]
[1736947593284,0.00375409,3222.2,3222.1,9.05187542]
[1736947593497,3.10739,3223.4,3222.1,9.05187542]
[1736947593498,0.00375515,3224.1,3223.5,3.10213]
[1736947593695,0.00375515,3224.1,3223.6,0.21301685]
[1736947593902,0.00375515,3224.1,3223.7,3.10202]
[1736947594129,0.00375515,3224.1,3223.8,3.10184]
[1736947594427,0.00375515,3224.1,3223.2,3.1025]
[1736947594428,0.7947,3224.0,3223.2,3.1025]
[1736947594650,0.7947,3224.0,3223.3,0.182]
[1736947594790,0.7947,3224.0,3223.4,3.10227]
[1736947595200,0.00375515,3224.1,3223.3,3.13031542]
[1736947595405,0.7947,3224.0,3223.7,3.10201]
[1736947595623,0.7947,3224.0,3223.4,0.03101578]
[1736947595810,0.7947,3224.0,3223.7,3.10202]
[1736947596131,0.7947,3224.0,3223.6,0.03101719]
[1736947596334,0.7947,3224.0,3223.7,3.10199]
[1736947596692,0.7947,3224.0,3223.6,0.03101719]
[1736947596925,0.7947,3224.0,3223.5,3.2842]
[1736947597128,0.7947,3224.0,3223.4,0.182]
[1736947597498,0.7947,3224.0,3223.5,0.03101892]
[1736947597704,0.00375515,3224.1,3224.0,3.10173]
[1736947597907,0.00375515,3224.1,3224.0,3.70673454]
[1736947598228,0.00375515,3224.1,3224.0,3.13274008]
[1736947601615,0.00375515,3224.1,3224.0,7.46484008]
[1736947601814,0.00375515,3224.1,3224.0,7.43383]
[1736947602745,0.0037514,3224.5,3224.1,3.55]
[1736947602944,0.0037514,3224.5,3224.4,6.04966542]
[1736947603252,0.0037514,3224.5,3224.4,6.83973261]
[1736947603813,0.0037514,3224.5,3224.4,11.17183261]
[1736947605762,0.0037514,3224.5,3224.4,10.62183261]
[1736947605944,0.0037514,3224.5,3224.4,6.83973261]
[1736947606634,0.0037514,3224.5,3224.4,3.70941719]
[1736947606963,0.0037514,3224.5,3224.4,3.89141719]
[1736947607954,0.0037514,3224.5,3224.4,0.79006719]
[1736947608157,0.0037514,3224.5,3224.4,0.182]
[1736947608557,0.7947,3224.4,3224.2,3.28352]
[1736947608757,0.7947,3224.4,3224.2,0.182]
[1736947609468,0.7947,3224.4,3223.8,2.94831542]
[1736947609654,0.7947,3224.4,3223.9,0.182]
[1736947609866,0.7947,3224.4,3223.8,3.70693754]
[1736947610063,0.7947,3224.4,3223.9,0.03101266]
[1736947610250,0.0037514,3224.5,3224.1,3.10162]
[1736947610579,0.0037514,3224.5,3224.2,0.21901158]
[1736947610883,0.0037514,3224.5,3224.4,3.10135]
[1736947611087,0.0037514,3224.5,3224.4,3.13235691]
[1736947611476,0.0037514,3224.5,3224.4,3.10135]
[1736947612083,0.0037514,3224.5,3224.3,0.3167327]
[1736947612299,0.0037514,3224.5,3224.4,6.08067366]
[1736947612485,0.0037514,3224.5,3224.4,6.7392143]
[1736947612652,0.0037514,3224.5,3224.4,6.70820606]
[1736947612863,0.00375444,3224.7,3224.4,6.70820606]
[1736947613095,0.00375444,3224.7,3224.6,3.10115]
[1736947613300,0.00375444,3224.7,3224.6,3.1321561]
[1736947613493,0.00375444,3224.7,3224.6,4.08518622]
[1736947614499,0.00375444,3224.7,3224.6,4.11619028]
[1736947615193,0.00375444,3224.7,3224.6,4.30419028]
[1736947615874,0.00375444,3224.7,3224.6,4.27318622]
[1736947616076,0.00375444,3224.7,3224.6,4.08518622]
[1736947616265,0.00375444,3224.7,3224.6,3.10115]
[1736947616460,0.00375444,3224.7,3224.6,0.188]
[1736947616682,0.00375444,3224.7,3224.5,3.10125]
[1736947616862,0.00375444,3224.7,3224.6,0.188]
[1736947617281,0.80085444,3224.7,3224.6,0.188]
[1736947617657,0.80085444,3224.7,3224.5,3.13223871]
[1736947617860,0.80085444,3224.7,3224.6,3.10115]
[1736947618058,0.00375444,3224.7,3224.6,3.10115]
[1736947619605,0.00375444,3224.7,3224.6,6.65115]
[1736947619862,0.00375444,3224.7,3224.6,12.92877497]
[1736947620333,0.00375444,3224.7,3224.6,13.21466726]
[1736947620530,0.7971,3225.7,3224.6,14.88108792]
[1736947620694,0.7971,3225.7,3225.4,3.10036]
[1736947621028,0.7971,3225.7,3225.5,0.188]
[1736947621226,0.7971,3225.7,3225.3,0.188]
[1736947621630,0.7971,3226.0,3225.3,0.188]
[1736947621926,0.7971,3226.1,3225.7,3.1001]
[1736947622128,0.7971,3226.1,3225.6,0.03099867]
[1736947622315,3.09828,3227.6,3226.9,0.24249598]
[1736947622491,0.005,3228.4,3227.1,0.24249598]
[1736947622703,6.29591542,3228.3,3227.1,0.24249598]
[1736947623012,3.09793,3228.0,3227.1,0.24249598]
[1736947623258,0.309793,3227.9,3227.1,0.24249598]
[1736947623613,3.09762,3228.3,3227.3,0.24249598]
[1736947623924,3.09784,3228.1,3227.3,0.24249598]
[1736947624263,0.005,3228.4,3227.6,0.24249598]
[1736947625302,0.8268,3228.3,3227.6,0.24249598]
[1736947626061,0.005,3228.4,3227.6,0.24249598]
[1736947626261,0.005,3228.4,3228.3,7.1033114]
[1736947626403,0.005,3228.4,3228.3,7.81364254]
[1736947626763,0.005,3228.4,3228.3,3.34009598]
[1736947627058,0.005,3228.4,3228.3,0.24249598]
[1736947627706,1e-05,3228.4,3228.3,3.37107028]
[1736947628549,3.55021202,3230.2,3228.3,3.37107028]
[1736947628550,0.8268,3231.5,3229.9,0.24249598]
[1736947628857,3.09473,3231.3,3230.4,0.24249598]
[1736947629057,0.8268,3231.5,3230.4,0.24249598]
[1736947629206,3.09428,3231.8,3230.6,0.24249598]
[1736947629406,3.8268,3231.8,3230.8,0.24249598]
[1736947629823,0.8268,3231.8,3230.8,0.24249598]
[1736947630227,0.01467322,3230.9,3230.8,0.24249598]
[1736947630919,0.01467322,3230.9,3230.8,4.15259598]
[1736947631133,0.01467322,3230.9,3230.8,3.33769598]
[1736947631331,0.01467322,3230.9,3230.8,3.5856451]
[1736947631726,0.01467322,3230.9,3230.8,4.1356451]
[1736947632471,0.01467322,3230.9,3230.8,3.33769598]
[1736947632679,0.8268,3232.7,3231.7,0.24249598]
[1736947632822,0.8268,3232.7,3230.8,3.6452]
[1736947632823,3.09349,3232.6,3231.5,0.24249598]
[1736947633018,0.8268,3232.7,3231.5,0.24249598]
[1736947633019,0.392029,3232.5,3231.5,0.24249598]
[1736947633268,0.8268,3232.7,3231.6,0.03094355]
[1736947633572,3.09368,3232.4,3231.5,0.24249598]
[1736947633942,3.09348,3232.6,3231.5,0.24249598]
[1736947634333,0.8268,3232.7,3231.5,0.24249598]
[1736947634538,0.8268,3232.7,3231.7,0.24249598]
[1736947634852,0.8268,3232.7,3231.5,0.24249598]
[1736947635155,0.40395115,3232.6,3231.5,0.24249598]
[1736947635359,3.0942,3231.9,3230.9,0.24249598]
[1736947635528,3.25,3232.4,3230.9,0.24249598]
[1736947635719,0.7849,3232.3,3230.9,0.24249598]
[1736947635922,6.542708,3232.1,3230.6,0.24249598]
[1736947636127,0.7849,3231.3,3230.4,0.24249598]
[1736947637427,0.7849,3231.3,3229.8,5.18848599]
[1736947637428,0.7849,3231.3,3230.6,0.24249598]
[1736947638939,3.87969,3231.3,3230.6,0.24249598]
[1736947639184,0.7849,3231.3,3230.6,0.24249598]
[1736947640604,3.09482,3231.2,3230.6,0.24249598]
[1736947640922,3.482902,3231.1,3230.3,0.24249598]
[1736947641215,0.387972,3231.1,3230.3,0.24249598]
[1736947641421,0.7849,3231.3,3230.3,0.24249598]
[1736947641422,3.09484,3231.2,3230.3,0.24249598]
[1736947642111,3.09493,3231.1,3230.3,0.24249598]
[1736947642270,0.7849,3231.3,3230.1,0.24249598]
[1736947642457,3.09522,3230.8,3229.9,0.24249598]
[1736947642967,3.09492,3231.1,3229.9,0.24249598]
[1736947643166,3.09492,3231.1,3229.8,4.40728599]
[1736947643167,0.7849,3230.6,3229.8,4.40728599]
[1736947643344,0.7849,3229.8,3229.0,0.24249598]
[1736947643697,3.542708,3229.6,3228.8,0.24249598]
[1736947643902,0.7849,3229.8,3228.8,0.24249598]
[1736947644056,3.09644,3229.6,3228.8,0.24249598]
[1736947644379,0.309644,3229.5,3228.8,0.24249598]
[1736947644581,0.7849,3229.8,3228.8,0.24249598]
[1736947644582,3.09639,3229.6,3228.8,0.24249598]
[1736947644812,3.09658,3229.4,3228.8,0.24249598]
[1736947645498,3.09658,3229.4,3228.6,0.24249598]
[1736947645781,3.09676,3229.2,3228.4,0.24249598]
[1736947646109,0.7849,3229.8,3228.2,0.24249598]
[1736947646110,0.309676,3229.1,3228.2,0.24249598]
[1736947646258,3.0,3229.3,3227.7,0.24249598]
[1736947646259,0.7849,3228.9,3227.7,0.24249598]
[1736947646603,3.09743,3228.5,3227.7,0.24249598]
[1736947646755,3.09757,3228.4,3227.5,0.87125436]
[1736947646956,3.09757,3228.4,3227.7,0.24249598]
[1736947647294,0.309757,3228.3,3227.5,0.87125436]
[1736947647451,3.09725,3228.7,3227.5,0.24249598]
[1736947647777,3.542708,3228.6,3227.2,1.38772695]
[1736947648099,0.7849,3227.9,3227.1,0.24249598]
[1736947648297,3.09827,3227.7,3227.1,0.24249598]
[1736947648446,0.309827,3227.6,3227.1,0.24249598]
[1736947648642,3.09837,3227.5,3226.8,0.24249598]
[1736947648846,3.0985,3227.4,3226.6,0.24249598]
[1736947649104,0.309827,3227.6,3226.6,0.24249598]
[1736947649246,3.09869,3227.2,3226.6,0.24249598]
[1736947649604,3.09869,3227.2,3226.3,0.24249598]
[1736947649605,3.408559,3227.2,3226.3,0.24249598]
[1736947649978,3.09895,3226.9,3226.3,0.24249598]
[1736947650436,3.09895,3226.9,3225.8,0.7812]
[1736947650437,0.7849,3226.6,3225.8,0.24249598]
[1736947650783,3.09888,3227.0,3226.2,0.24249598]
[1736947650985,3.09895,3226.9,3226.2,0.24249598]
[1736947651224,0.7849,3227.5,3225.8,0.24249598]
[1736947651225,0.309895,3226.8,3225.8,0.24249598]
[1736947651423,3.09925,3226.6,3226.0,0.24249598]
[1736947651639,3.09906,3226.8,3225.8,0.24249598]
[1736947651838,0.7849,3227.5,3226.2,0.24249598]
[1736947651995,3.09869,3227.2,3226.2,0.24249598]
[1736947652188,3.09877,3227.1,3226.2,0.24249598]
[1736947652388,3.09892,3227.0,3226.2,0.24249598]
[1736947652589,3.09896,3226.9,3226.2,0.24249598]
[1736947652806,3.09932,3226.6,3226.0,0.24249598]
[1736947653083,3.0991,3226.8,3226.0,0.24249598]
[1736947653289,3.0,3227.2,3226.0,0.24249598]
[1736947653496,3.09914,3226.7,3226.0,0.24249598]
[1736947654202,3.09914,3226.7,3225.5,0.03099552]
[1736947654203,3.88328,3227.5,3226.6,0.24249598]
[1736947654523,3.5178607,3227.4,3226.6,0.24249598]
[1736947655027,3.5178607,3227.4,3226.4,0.24249598]